fUSD/lending_fUSD_20240222
["ID","MTS","AMOUNT","RATE_DAILY","PERIOD"]
[314897907,1708625504334,-10365.29,0.00033424,4]
[314897908,1708625504344,-1908.5,0.00033424,4]
[314897909,1708625504353,-500.0,0.00033424,4]
[314897910,1708625504362,-1930.81,0.00033424,4]
[314897911,1708625504372,-1831.86,0.00033424,4]
[314897912,1708625504383,-4645.8,0.00033424,4]
[314897913,1708625504394,-500.0,0.00033424,4]
[314897914,1708625504404,-500.0,0.00033424,4]
[314897915,1708625504414,-1019.93,0.00033424,4]
[314897916,1708625504423,-500.0,0.00033424,4]
[314897917,1708625504434,-831.39,0.00033424,4]
[314897918,1708625504443,-1113.04,0.00033424,4]
[314897919,1708625504452,-2272.34,0.00033424,4]
[314897920,1708625504461,-19048.88,0.00033424,4]
[314897921,1708625504470,-899.16,0.00033424,4]
[314897922,1708625504480,-703.63,0.00033424,4]
[314897923,1708625504489,-4986.223576,0.00033424,7]
[314897924,1708625504498,-612.06,0.00033424,4]
[314897925,1708625504508,-1790.32,0.00033424,4]
[314897926,1708625504518,-500.0,0.00033424,4]
[314897927,1708625504527,-3342.93,0.00033424,4]
[314897928,1708625504538,-6652.12,0.00033424,4]
[314897929,1708625504547,-1083.4,0.00033424,4]
[314897930,1708625504556,-4986.223576,0.00033424,7]
[314897931,1708625504566,-316.339277,0.00033424,7]
[314897932,1708625504576,-3448.92,0.00033424,4]
[314897933,1708625504585,-500.0,0.00033424,4]
[314897934,1708625504595,-2397.11,0.00033424,4]
[314897935,1708625504604,-500.0,0.00033424,4]
[314897936,1708625504613,-566.02,0.00033424,4]
[314897937,1708625504623,-316.339277,0.00033424,7]
[314897938,1708625504633,-588.46,0.00033424,4]
[314897939,1708625504642,-668.81,0.00033424,4]
[314897940,1708625504651,-504.65,0.00033424,4]
[314897941,1708625504660,-1569.54,0.00033424,4]
[314897942,1708625504669,-890.14,0.00033424,4]
[314897943,1708625504679,-500.0,0.00033424,4]
[314897944,1708625504689,-2839.46,0.00033424,4]
[314897945,1708625504698,-151.0,0.00033424,7]
[314897946,1708625504708,-500.0,0.00033424,4]
[314897947,1708625504718,-500.0,0.00033424,4]
[314897948,1708625504728,-1599.27,0.00033424,4]
[314897949,1708625504738,-12262.15,0.00033424,4]
[314897950,1708625504747,-500.0,0.00033424,4]
[314897951,1708625504757,-603.26,0.00033424,4]
[314897952,1708625504766,-4428.36,0.00033424,4]
[314897953,1708625504775,-684.48,0.00033424,4]
[314897954,1708625504785,-500.0,0.00033424,4]
[314897955,1708625504794,-2710.14,0.00033424,4]
[314897956,1708625504804,-11511.86,0.00033424,4]
[314897957,1708625504813,-13857.62,0.00033424,4]
[314897958,1708625504823,-935.58,0.00033424,4]
[314897959,1708625504832,-1092.92,0.00033424,4]
[314897960,1708625504843,-500.0,0.00033424,4]
[314897961,1708625504852,-1594.69,0.00033424,4]
[314897962,1708625504863,-500.0,0.00033424,4]
[314897963,1708625504877,-500.0,0.00033424,4]
[314897964,1708625504887,-543.61,0.00033424,4]
[314897965,1708625504896,-787.78,0.00033424,4]
[314897966,1708625504905,-500.0,0.00033424,4]
[314897967,1708625504917,-12927.16,0.00033424,4]
[314897968,1708625504926,-500.0,0.00033424,4]
[314897969,1708625504936,-952.32,0.00033424,4]
[314897970,1708625504945,-500.0,0.00033424,4]
[314897971,1708625504955,-1397.23,0.00033424,4]
[314897972,1708625504965,-15657.06,0.00033424,4]
[314897973,1708625504974,-734.09,0.00033424,4]
[314897974,1708625504983,-500.0,0.00033424,4]
[314897975,1708625504993,-500.0,0.00033424,4]
[314897976,1708625505002,-638.64,0.00033424,4]
[314897977,1708625505011,-500.0,0.00033424,4]
[314897978,1708625505020,-500.0,0.00033424,4]
[314897979,1708625505030,-500.0,0.00033424,4]
[314897980,1708625505039,-1622.99,0.00033424,4]
[314897981,1708625505049,-2266.68,0.00033424,4]
[314897982,1708625505059,-2464.49,0.00033424,4]
[314897983,1708625505069,-1572.14,0.00033424,4]
[314897984,1708625505078,-618.36215418,0.00033424,4]
[314897985,1708625505087,-500.0,0.00033424,4]
[314897986,1708625505097,-1658.88,0.00033424,4]
[314897987,1708625505106,-204.164856,0.00033424,7]
[314897988,1708625505116,-802.87,0.00033424,4]
[314897989,1708625505125,-1524.56,0.00033424,4]
[314897990,1708625505134,-631.35,0.00033424,4]
[314897991,1708625505144,-500.0,0.00033424,4]
[314897992,1708625505153,-500.0,0.00033424,4]
[314897993,1708625505162,-500.0,0.00033424,4]
[314897994,1708625505172,-570.09915475,0.00033424,4]
[314897995,1708625505182,-500.0,0.00033424,4]
[314897996,1708625505191,-795.52,0.00033424,4]
[314897997,1708625505201,-1000.0,0.00033424,7]
[314897998,1708625505210,-6459.32,0.00033424,4]
[314897999,1708625505219,-3708.97,0.00033424,4]
[314898000,1708625505229,-833.35,0.00033424,4]
[314898001,1708625505239,-1063.1,0.00033424,4]
[314898002,1708625505249,-8548.5,0.00033424,4]
[314898003,1708625505258,-619.16,0.00033424,4]
[314898004,1708625505267,-8589.16,0.00033424,4]
[314898005,1708625505277,-725.96,0.00033424,4]
[314898006,1708625505285,-559.93,0.00033424,4]
[314898007,1708625505295,-1242.959557,0.00033424,7]
[314898008,1708625505304,-500.0,0.00033424,4]
[314898009,1708625505314,-500.0,0.00033424,4]
[314898010,1708625505323,-885.04,0.00033424,4]
[314898011,1708625505333,-1242.959557,0.00033424,7]
[314898012,1708625505342,-695.88,0.00033424,4]
[314898013,1708625505352,-151.0,0.00033424,7]
[314898014,1708625505361,-500.0,0.00033424,4]
[314898015,1708625505372,-1152.72,0.00033424,4]
[314898016,1708625505381,-151.0,0.00033424,7]
[314898017,1708625505390,-1529.13,0.00033424,4]
[314898018,1708625505400,-3657.93,0.00033424,4]
[314898019,1708625505410,-1521.37,0.00033424,4]
[314898020,1708625505420,-500.0,0.00033424,4]
[314898021,1708625505430,-1371.815247,0.00033424,7]
[314898022,1708625505440,-649.89,0.00033424,4]
[314898023,1708625505450,-1012.78,0.00033424,4]
[314898024,1708625505460,-500.0,0.00033424,4]
[314898025,1708625505470,-1371.815247,0.00033424,7]
[314898026,1708625505480,-500.0,0.00033424,4]
[314898027,1708625505490,-1281.51,0.00033424,4]
[314898028,1708625505500,-982.4,0.00033424,4]
[314898029,1708625505509,-548.38,0.00033424,4]
[314898030,1708625505519,-757.3,0.00033424,4]
[314898031,1708625505529,-500.0,0.00033424,4]
[314898032,1708625505539,-753.97,0.00033424,4]
[314898033,1708625505549,-2156.76,0.00033424,4]
[314898034,1708625505559,-2549.51,0.00033424,4]
[314898035,1708625505569,-296.963224,0.00033424,7]
[314898036,1708625505580,-2213.41,0.00033424,4]
[314898037,1708625505590,-500.0,0.00033424,4]
[314898038,1708625505600,-4381.7,0.00033424,4]
[314898039,1708625505611,-5006.44,0.00033424,4]
[314898040,1708625505621,-296.963224,0.00033424,7]
[314898041,1708625505631,-500.0,0.00033424,4]
[314898042,1708625505642,-500.0,0.00033424,4]
[314898043,1708625505653,-1083.67,0.00033424,4]
[314898044,1708625505663,-411.757149,0.00033424,7]
[314898045,1708625505673,-200.67217129,0.00033424,4]
[314898046,1708625505684,-2631.91,0.00033424,4]
[314898047,1708625505694,-500.0,0.00033424,4]
[314898048,1708625505703,-647.141138,0.00033424,7]
[314898049,1708625505714,-411.757149,0.00033424,7]
[314898050,1708625505724,-647.141138,0.00033424,7]
[314898051,1708625505733,-928.82,0.00033424,4]
[314898052,1708625505744,-1050.11,0.00033424,4]
[314898053,1708625505753,-988.3,0.00033424,4]
[314898054,1708625505763,-553.85,0.00033424,4]
[314898055,1708625505773,-1569.8,0.00033424,4]
[314898056,1708625505783,-1347.04,0.00033424,4]
[314898057,1708625505792,-1930.76,0.00033424,4]
[314898058,1708625505802,-500.0,0.00033424,4]
[314898059,1708625505812,-266.013848,0.00033424,7]
[314898060,1708625505822,-1578.95,0.00033424,4]
[314898061,1708625505831,-654.06,0.00033424,4]
[314898062,1708625505842,-266.013848,0.00033424,7]
[314898063,1708625505851,-500.0,0.00033424,4]
[314898064,1708625505861,-1152.52,0.00033424,4]
[314898065,1708625505871,-1562.64,0.00033424,4]
[314898066,1708625505885,-13046.67,0.00033424,4]
[314898067,1708625505895,-500.0,0.00033424,4]
[314898068,1708625505905,-554.48,0.00033424,4]
[314898069,1708625505914,-5718.46,0.00033424,4]
[314898070,1708625505924,-585.24,0.00033424,4]
[314898071,1708625505933,-4320.81,0.00033424,4]
[314898072,1708625505943,-1143.61,0.00033424,4]
[314898073,1708625505954,-500.0,0.00033424,4]
[314898074,1708625505963,-649.169362,0.00033424,7]
[314898075,1708625505973,-500.0,0.00033424,4]
[314898076,1708625505982,-3703.9,0.00033424,4]
[314898077,1708625505991,-500.0,0.00033424,4]
[314898078,1708625506001,-649.169362,0.00033424,7]
[314898079,1708625506011,-845.41,0.00033424,4]
[314898080,1708625506021,-1239.69,0.00033424,4]
[314898081,1708625506031,-500.0,0.00033424,4]
[314898082,1708625506041,-842.27,0.00033424,4]
[314898083,1708625506051,-2562.83,0.00033424,4]
[314898084,1708625506060,-1082.3,0.00033424,4]
[314898085,1708625506070,-968.09,0.00033424,4]
[314898086,1708625506079,-192.527771,0.00033424,7]
[314898087,1708625506090,-616.62218161,0.00033424,4]
[314898088,1708625506099,-500.0,0.00033424,2]
[314898089,1708625506109,-192.527771,0.00033424,7]
[314898090,1708625506119,-2763.17,0.00033424,4]
[314898091,1708625506128,-1672.02,0.00033424,4]
[314898092,1708625506137,-500.0,0.00033424,4]
[314898093,1708625506147,-500.0,0.00033424,4]
[314898094,1708625506156,-850.13,0.00033424,4]
[314898095,1708625506166,-668.88,0.00033424,4]
[314898096,1708625506176,-1634.02,0.00033424,4]
[314898097,1708625506187,-500.0,0.00033424,4]
[314898098,1708625506196,-3311.96,0.00033424,4]
[314898099,1708625506206,-1279.14,0.00033424,4]
[314898100,1708625506216,-2625.59,0.00033424,4]
[314898101,1708625506226,-930.33,0.00033424,4]
[314898102,1708625506236,-1635.09,0.00033424,4]
[314898103,1708625506246,-619.14,0.00033424,4]
[314898104,1708625506256,-500.0,0.00033424,4]
[314898105,1708625506266,-2609.74,0.00033424,4]
[314898106,1708625506275,-3610.42,0.00033424,4]
[314898107,1708625506285,-967.22,0.00033424,4]
[314898108,1708625506295,-310.972495,0.00033424,7]
[314898109,1708625506304,-923.8,0.00033424,4]
[314898110,1708625506314,-1343.66,0.00033424,4]
[314898111,1708625506323,-500.0,0.00033424,2]
[314898112,1708625506333,-2303.413771,0.00033424,7]
[314898113,1708625506343,-500.0,0.00033424,4]
[314898114,1708625506353,-310.972495,0.00033424,7]
[314898115,1708625506363,-1380.71,0.00033424,4]
[314898116,1708625506373,-1594.46,0.00033424,4]
[314898117,1708625506383,-8671.59,0.00033424,4]
[314898118,1708625506393,-1079.87,0.00033424,4]
[314898119,1708625506404,-187.799838,0.00033424,7]
[314898120,1708625506414,-2303.413771,0.00033424,7]
[314898121,1708625506424,-1411.77,0.00033424,4]
[314898122,1708625506435,-150.0,0.00033429,2]
[314898123,1708625506445,-150.0,0.00033429,2]
[314898124,1708625506455,-150.0,0.00033439,2]
[314898125,1708625506465,-150.0,0.00033445,2]
[314898126,1708625506475,-157.0,0.00033452,2]
[314898127,1708625506485,-1500.0,0.00033453,2]
[314898128,1708625506495,-150.0,0.00033463,2]
[314898129,1708625506506,-492.0,0.00033465,3]
[314898130,1708625506516,-150.0,0.00033484,2]
[314898131,1708625506526,-150.0,0.00033484,2]
[314898132,1708625506537,-150.0,0.00033488,2]
[314898133,1708625506548,-150.0,0.00033491,2]
[314898134,1708625506557,-150.0,0.00033496,2]
[314898135,1708625506567,-5200.0,0.000335,10]
[314898136,1708625506577,-70309.24773766,0.000335,2]
[314898137,1708625506587,-150.0,0.000335,2]
[314898138,1708625506597,-150.0,0.00033511,2]
[314898139,1708625506607,-150.0,0.00033515,2]
[314898140,1708625506617,-150.0,0.00033518,2]
[314898141,1708625506627,-150.0,0.00033519,2]
[314898142,1708625506637,-150.0,0.00033521,2]
[314898143,1708625506647,-150.0,0.00033532,2]
[314898144,1708625506657,-150.0,0.00033533,2]
[314898145,1708625506667,-300.0,0.00033533,2]
[314898146,1708625506676,-150.0,0.00033542,2]
[314898147,1708625506687,-1500.0,0.00033543,2]
[314898148,1708625506697,-150.0,0.00033549,2]
[314898149,1708625506706,-150.0,0.00033556,2]
[314898150,1708625506716,-150.0,0.00033559,2]
[314898151,1708625506726,-500.0,0.00033561,4]
[314898152,1708625506736,-500.0,0.00033561,4]
[314898153,1708625506746,-500.0,0.00033561,4]
[314898154,1708625506756,-500.0,0.00033561,4]
[314898155,1708625506767,-500.0,0.00033561,4]
[314898156,1708625506778,-500.0,0.00033561,4]
[314898157,1708625506788,-500.0,0.00033561,4]
[314898158,1708625506797,-500.0,0.00033561,4]
[314898159,1708625506807,-500.0,0.00033561,4]
[314898160,1708625506817,-500.0,0.00033561,4]
[314898161,1708625506827,-500.0,0.00033561,4]
[314898162,1708625506837,-500.0,0.00033561,4]
[314898163,1708625506847,-500.0,0.00033561,4]
[314898164,1708625507057,-500.0,0.00033561,2]
[314898165,1708625507067,-500.0,0.00033561,4]
[314898166,1708625507076,-514.99,0.00033561,4]
[314898167,1708625507085,-500.0,0.00033561,4]
[314898168,1708625507094,-500.0,0.00033561,4]
[314898169,1708625507104,-555.79,0.00033561,4]
[314898170,1708625507114,-500.0,0.00033561,4]
[314898171,1708625507123,-500.0,0.00033561,4]
[314898172,1708625507132,-641.75,0.00033561,4]
[314898173,1708625507141,-500.0,0.00033561,4]
[314898174,1708625507150,-750.74,0.00033561,4]
[314898175,1708625507160,-500.0,0.00033561,4]
[314898176,1708625507170,-500.0,0.00033561,4]
[314898177,1708625507179,-500.0,0.00033561,4]
[314898178,1708625507189,-626.48063644,0.00033561,4]
[314898179,1708625507198,-500.0,0.00033561,4]
[314898180,1708625507207,-500.0,0.00033561,4]
[314898181,1708625507216,-542.31,0.00033561,4]
[314898182,1708625507225,-604.3604938,0.00033561,4]
[314898183,1708625507234,-500.0,0.00033561,4]
[314898184,1708625507245,-621.21,0.00033561,4]
[314898185,1708625507254,-500.0,0.00033561,4]
[314898186,1708625507264,-500.0,0.00033561,4]
[314898187,1708625507273,-231.46,0.00033561,7]
[314898188,1708625507283,-250.0,0.00033561,4]
[314898189,1708625507294,-231.46,0.00033561,7]
[314898190,1708625507304,-551.07,0.00033561,4]
[314898191,1708625507314,-500.0,0.00033561,4]
[314898192,1708625507323,-500.0,0.00033561,4]
[314898193,1708625507333,-744.09,0.00033561,4]
[314898194,1708625507342,-500.0,0.00033561,4]
[314898195,1708625507351,-500.0,0.00033561,4]
[314898196,1708625507360,-500.0,0.00033561,4]
[314898197,1708625507369,-500.0,0.00033561,4]
[314898198,1708625507378,-500.0,0.00033561,4]
[314898199,1708625507387,-201.44903457,0.00033561,4]
[314898200,1708625507396,-500.0,0.00033561,4]
[314898201,1708625507406,-500.0,0.00033561,4]
[314898202,1708625507415,-573.53,0.00033561,4]
[314898203,1708625507425,-500.0,0.00033561,4]
[314898204,1708625507434,-500.0,0.00033561,4]
[314898205,1708625507444,-151.0,0.00033561,7]
[314898206,1708625507454,-500.0,0.00033561,4]
[314898207,1708625507463,-500.0,0.00033561,4]
[314898208,1708625507473,-500.0,0.00033561,4]
[314898209,1708625507483,-523.45704655,0.00033561,4]
[314898210,1708625507492,-500.0,0.00033561,4]
[314898211,1708625507503,-500.0,0.00033561,4]
[314898212,1708625507512,-500.0,0.00033561,4]
[314898213,1708625507522,-500.0,0.00033561,4]
[314898214,1708625507531,-500.0,0.00033561,4]
[314898215,1708625507541,-500.0,0.00033561,4]
[314898216,1708625507552,-500.0,0.00033561,4]
[314898217,1708625507561,-524.07,0.00033561,4]
[314898218,1708625507571,-500.0,0.00033561,4]
[314898219,1708625507582,-295.604972,0.00033561,7]
[314898220,1708625507591,-355.98248981,0.00033561,4]
[314898221,1708625507601,-951.85,0.00033561,4]
[314898222,1708625507610,-500.0,0.00033561,4]
[314898223,1708625507620,-926.28,0.00033561,4]
[314898224,1708625507629,-744.11,0.00033561,4]
[314898225,1708625507639,-529.22,0.00033561,4]
[314898226,1708625507648,-500.0,0.00033561,4]
[314898227,1708625507658,-500.0,0.00033561,4]
[314898228,1708625507667,-500.0,0.00033561,4]
[314898229,1708625507676,-500.0,0.00033561,4]
[314898230,1708625507686,-1143.73,0.00033561,4]
[314898231,1708625507696,-500.0,0.00033561,4]
[314898232,1708625507705,-500.0,0.00033561,4]
[314898233,1708625507714,-500.0,0.00033561,4]
[314898234,1708625507724,-151.0,0.00033561,3]
[314898235,1708625507734,-779.36,0.00033561,4]
[314898236,1708625507743,-500.0,0.00033561,4]
[314898237,1708625507753,-635.41,0.00033561,4]
[314898238,1708625507762,-555.19,0.00033561,4]
[314898239,1708625507771,-500.0,0.00033561,4]
[314898240,1708625507781,-500.0,0.00033561,4]
[314898241,1708625507791,-500.0,0.00033561,4]
[314898242,1708625507800,-500.0,0.00033561,4]
[314898243,1708625507810,-151.0,0.00033561,7]
[314898244,1708625507819,-822.26,0.00033561,4]
[314898245,1708625507828,-769.66,0.00033561,4]
[314898246,1708625507837,-500.0,0.00033561,4]
[314898247,1708625507847,-500.0,0.00033561,4]
[314898248,1708625507857,-500.0,0.00033561,4]
[314898249,1708625507867,-500.0,0.00033561,4]
[314898250,1708625507880,-889.62,0.00033561,4]
[314898251,1708625507889,-634.08,0.00033561,4]
[314898252,1708625507898,-454.00902344,0.00033561,4]
[314898253,1708625507908,-500.0,0.00033561,4]
[314898254,1708625507918,-567.01,0.00033561,4]
[314898255,1708625507927,-721.11,0.00033561,4]
[314898256,1708625507937,-653.98,0.00033561,4]
[314898257,1708625507947,-659.59,0.00033561,4]
[314898258,1708625507960,-500.0,0.00033561,4]
[314898259,1708625507970,-500.0,0.00033561,4]
[314898260,1708625507979,-951.61,0.00033561,4]
[314898261,1708625507990,-627.93,0.00033561,4]
[314898262,1708625507999,-276.75481643,0.00033561,4]
[314898263,1708625508008,-1016.3,0.00033561,4]
[314898264,1708625508017,-481.651988,0.00033561,7]
[314898265,1708625508027,-516.37989754,0.00033561,4]
[314898266,1708625508036,-677.11,0.00033561,4]
[314898267,1708625508046,-500.0,0.00033561,4]
[314898268,1708625508055,-668.92,0.00033561,4]
[314898269,1708625508064,-746.18,0.00033561,4]
[314898270,1708625508074,-500.0,0.00033561,4]
[314898271,1708625508083,-481.651988,0.00033561,7]
[314898272,1708625508092,-655.97,0.00033561,4]
[314898273,1708625508101,-500.0,0.00033561,4]
[314898274,1708625508110,-500.0,0.00033561,4]
[314898275,1708625508119,-944.62,0.00033561,4]
[314898276,1708625508127,-500.0,0.00033561,4]
[314898277,1708625508137,-500.0,0.00033561,4]
[314898278,1708625508146,-500.0,0.00033561,4]
[314898279,1708625508155,-500.0,0.00033561,4]
[314898280,1708625508164,-804.18,0.00033561,4]
[314898281,1708625508173,-535.66,0.00033561,4]
[314898282,1708625508183,-936.27,0.00033561,4]
[314898283,1708625508192,-500.0,0.00033561,4]
[314898284,1708625508201,-573.6,0.00033561,4]
[314898285,1708625508210,-574.55928272,0.00033561,4]
[314898286,1708625508219,-156.950667,0.00033561,7]
[314898287,1708625508228,-500.0,0.00033561,4]
[314898288,1708625508237,-573.73,0.00033561,4]
[314898289,1708625508246,-156.950667,0.00033561,7]
[314898290,1708625508256,-906.98,0.00033561,4]
[314898291,1708625508266,-625.48,0.00033561,4]
[314898292,1708625508275,-619.25,0.00033561,4]
[314898293,1708625508287,-526.18847654,0.00033561,4]
[314898294,1708625508296,-802.24,0.00033561,4]
[314898295,1708625508306,-154.29219364,0.00033561,4]
[314898296,1708625508315,-500.0,0.00033561,4]
[314898297,1708625508324,-553.85,0.00033561,4]
[314898298,1708625508335,-951.64,0.00033561,4]
[314898299,1708625508345,-500.0,0.00033561,4]
[314898300,1708625508355,-694.67,0.00033561,4]
[314898301,1708625508365,-500.0,0.00033561,4]
[314898302,1708625508375,-500.0,0.00033561,4]
[314898303,1708625508385,-991.06,0.00033561,4]
[314898304,1708625508395,-500.0,0.00033561,4]
[314898305,1708625508405,-676.95,0.00033561,4]
[314898306,1708625508414,-500.0,0.00033561,4]
[314898307,1708625508424,-764.63,0.00033561,4]
[314898308,1708625508433,-500.0,0.00033561,4]
[314898309,1708625508443,-508.78,0.00033561,4]
[314898310,1708625508452,-500.0,0.00033561,4]
[314898311,1708625508461,-500.0,0.00033561,2]
[314898312,1708625508470,-802.5,0.00033561,4]
[314898313,1708625508481,-624.5883466,0.00033561,4]
[314898314,1708625508490,-664.95,0.00033561,4]
[314898315,1708625508499,-500.0,0.00033561,4]
[314898316,1708625508509,-500.0,0.00033561,4]
[314898317,1708625508519,-692.13,0.00033561,4]
[314898318,1708625508529,-632.57,0.00033561,4]
[314898319,1708625508538,-509.92,0.00033561,4]
[314898320,1708625508548,-500.0,0.00033561,4]
[314898321,1708625508557,-500.0,0.00033561,4]
[314898322,1708625508567,-642.87259887,0.00033561,4]
[314898323,1708625508576,-500.0,0.00033561,4]
[314898324,1708625508585,-607.02,0.00033561,4]
[314898325,1708625508595,-792.22,0.00033561,4]
[314898326,1708625508604,-500.0,0.00033561,4]
[314898327,1708625508614,-1057.84,0.00033561,4]
[314898328,1708625508624,-500.0,0.00033561,4]
[314898329,1708625508633,-967.9,0.00033561,4]
[314898330,1708625508643,-1015.71,0.00033561,4]
[314898331,1708625508653,-500.0,0.00033561,4]
[314898332,1708625508662,-1057.91,0.00033561,4]
[314898333,1708625508671,-500.0,0.00033561,4]
[314898334,1708625508680,-500.0,0.00033561,4]
[314898335,1708625508690,-1562.84,0.00033561,4]
[314898336,1708625508699,-500.0,0.00033561,2]
[314898337,1708625508709,-908.7,0.00033561,4]
[314898338,1708625508718,-574.22,0.00033561,4]
[314898339,1708625508728,-1195.95,0.00033561,4]
[314898340,1708625508737,-500.0,0.00033561,4]
[314898341,1708625508746,-500.0,0.00033561,4]
[314898342,1708625508756,-500.0,0.00033561,4]
[314898343,1708625508765,-151.0,0.00033561,7]
[314898344,1708625508775,-168.94454485,0.00033561,4]
[314898345,1708625508784,-711.8,0.00033561,4]
[314898346,1708625508793,-500.0,0.00033561,4]
[314898347,1708625508802,-643.93,0.00033561,4]
[314898348,1708625508812,-151.0,0.00033561,7]
[314898349,1708625508821,-500.0,0.00033561,4]
[314898350,1708625508830,-690.36,0.00033561,4]
[314898351,1708625508839,-500.0,0.00033561,4]
[314898352,1708625508850,-582.2,0.00033561,4]
[314898353,1708625508859,-623.27,0.00033561,4]
[314898354,1708625508868,-808.11,0.00033561,4]
[314898355,1708625508881,-500.0,0.00033561,4]
[314898356,1708625508890,-955.15,0.00033561,4]
[314898357,1708625508901,-202.50054886,0.00033561,4]
[314898358,1708625508910,-500.0,0.00033561,4]
[314898359,1708625508918,-151.0,0.00033561,7]
[314898360,1708625508930,-500.0,0.00033561,2]
[314898361,1708625508940,-520.41,0.00033561,4]
[314898362,1708625508949,-500.0,0.00033561,4]
[314898363,1708625508961,-642.76,0.00033561,4]
[314898364,1708625508972,-500.0,0.00033561,4]
[314898365,1708625508981,-500.0,0.00033561,4]
[314898366,1708625508990,-500.0,0.00033561,4]
[314898367,1708625508999,-814.72,0.00033561,4]
[314898368,1708625509008,-763.81,0.00033561,4]
[314898369,1708625509017,-500.0,0.00033561,4]
[314898370,1708625509026,-500.0,0.00033561,4]
[314898371,1708625509035,-920.28,0.00033561,4]
[314898372,1708625509044,-595.79,0.00033561,4]
[314898373,1708625509054,-500.0,0.00033561,4]
[314898374,1708625509063,-151.0,0.00033561,7]
[314898375,1708625509072,-616.74,0.00033561,4]
[314898376,1708625509081,-693.29,0.00033561,4]
[314898377,1708625509090,-704.13,0.00033561,4]
[314898378,1708625509100,-970.8,0.00033561,4]
[314898379,1708625509109,-523.23,0.00033561,4]
[314898380,1708625509118,-552.1,0.00033561,4]
[314898381,1708625509127,-569.97,0.00033561,4]
[314898382,1708625509137,-500.0,0.00033561,4]
[314898383,1708625509145,-546.34,0.00033561,4]
[314898384,1708625509154,-500.0,0.00033561,4]
[314898385,1708625509164,-272.392206,0.00033561,7]
[314898386,1708625509173,-597.14,0.00033561,4]
[314898387,1708625509182,-272.392206,0.00033561,7]
[314898388,1708625509191,-936.39,0.00033561,4]
[314898389,1708625509200,-500.0,0.00033561,4]
[314898390,1708625509209,-500.0,0.00033561,4]
[314898391,1708625509218,-500.0,0.00033561,4]
[314898392,1708625509227,-1000.0,0.00033561,7]
[314898393,1708625509237,-1322.67,0.00033561,4]
[314898394,1708625509247,-500.0,0.00033561,4]
[314898395,1708625509256,-513.58,0.00033561,4]
[314898396,1708625509265,-500.0,0.00033561,4]
[314898397,1708625509275,-1000.0,0.00033561,7]
[314898398,1708625509284,-500.0,0.00033561,4]
[314898399,1708625509295,-652.66,0.00033561,4]
[314898400,1708625509304,-500.0,0.00033561,4]
[314898401,1708625509314,-500.0,0.00033561,4]
[314898402,1708625509323,-905.48,0.00033561,4]
[314898403,1708625509334,-500.0,0.00033561,4]
[314898404,1708625509343,-500.0,0.00033561,4]
[314898405,1708625509352,-902.91,0.00033561,4]
[314898406,1708625509362,-500.0,0.00033561,4]